[Event "Early-Titled-Tuesday-Blitz-October-24-2023"]
[Site "Chess.com"]
[Date "2023.10.24"]
[Round "3"]
[White "JoliyRoger"]
[Black "twofoxniel"]
[Result "1-0"]
[WhiteElo "2451"]
[BlackElo "2592"]
[TimeControl "180+1"]
[EndTime "8:28:54 PDT"]
[Termination "JoliyRoger won by checkmate"]

1. Nf3 {[%clk 0:02:53.8]} 1... d5 {[%clk 0:02:59.6]} 2. c4 {[%clk 0:02:52]} 2...
c6 {[%clk 0:02:59.3]} 3. e3 {[%clk 0:02:50.2]} 3... Nf6 {[%clk 0:02:59.7]} 4. b3
{[%clk 0:02:50.5]} 4... Bf5 {[%clk 0:02:59.1]} 5. Bb2 {[%clk 0:02:51.1]} 5... e6
{[%clk 0:02:59.6]} 6. Nh4 {[%clk 0:02:46.4]} 6... Bg4 {[%clk 0:02:58]} 7. Qc2
{[%clk 0:02:46.5]} 7... Nbd7 {[%clk 0:02:51]} 8. Nf3 {[%clk 0:02:24.9]} 8... a5
{[%clk 0:02:42]} 9. h3 {[%clk 0:02:19.5]} 9... Bh5 {[%clk 0:02:42.1]} 10. Be2
{[%clk 0:02:09.1]} 10... Be7 {[%clk 0:02:40.8]} 11. O-O {[%clk 0:02:06.6]} 11...
O-O {[%clk 0:02:40.9]} 12. d3 {[%clk 0:02:07.1]} 12... Re8 {[%clk 0:02:40.1]}
13. Nbd2 {[%clk 0:01:52.6]} 13... a4 {[%clk 0:02:35.7]} 14. Rfe1 {[%clk
0:01:44.6]} 14... Qb6 {[%clk 0:02:20.2]} 15. Bd4 {[%clk 0:01:37.7]} 15... Bc5
{[%clk 0:02:02.1]} 16. Bc3 {[%clk 0:01:34.4]} 16... Bb4 {[%clk 0:01:56.9]} 17.
Rab1 {[%clk 0:01:26.5]} 17... a3 {[%clk 0:01:50.7]} 18. d4 {[%clk 0:01:16.5]}
18... Rac8 {[%clk 0:01:39.5]} 19. c5 {[%clk 0:01:16.1]} 19... Qa5 {[%clk
0:01:39.8]} 20. Bxb4 {[%clk 0:01:14.7]} 20... Qxb4 {[%clk 0:01:40.7]} 21. Rbc1
{[%clk 0:01:04.5]} 21... e5 {[%clk 0:01:40.3]} 22. dxe5 {[%clk 0:00:58]} 22...
Nxe5 {[%clk 0:01:38.6]} 23. Nxe5 {[%clk 0:00:58.4]} 23... Rxe5 {[%clk
0:01:38.7]} 24. Bxh5 {[%clk 0:00:57.7]} 24... Rxh5 {[%clk 0:01:36.5]} 25. Qc3
{[%clk 0:00:55.3]} 25... Qb5 {[%clk 0:01:09.6]} 26. b4 {[%clk 0:00:49.9]} 26...
Ra8 {[%clk 0:01:09.7]} 27. Rb1 {[%clk 0:00:48.6]} 27... Rh4 {[%clk 0:01:03.5]}
28. Rb3 {[%clk 0:00:47.9]} 28... Ra4 {[%clk 0:01:02.6]} 29. Reb1 {[%clk
0:00:48.3]} 29... h6 {[%clk 0:00:58.4]} 30. g3 {[%clk 0:00:14.7]} 30... Rxh3
{[%clk 0:00:54]} 31. Kg2 {[%clk 0:00:13.4]} 31... Rh5 {[%clk 0:00:52.8]} 32.
Rxa3 {[%clk 0:00:13.4]} 32... Rxa3 {[%clk 0:00:53.2]} 33. Qxa3 {[%clk
0:00:14.1]} 33... Qe2 {[%clk 0:00:52.9]} 34. Nf1 {[%clk 0:00:10.2]} 34... Ng4
{[%clk 0:00:46.8]} 35. Qb2 {[%clk 0:00:10.6]} 35... Qd3 {[%clk 0:00:35.6]} 36.
Re1 {[%clk 0:00:08.2]} 36... Qf5 {[%clk 0:00:33.8]} 37. Qe2 {[%clk 0:00:08.4]}
37... Ne5 {[%clk 0:00:28]} 38. f3 {[%clk 0:00:08.9]} 38... Qh3+ {[%clk
0:00:22.1]} 39. Kf2 {[%clk 0:00:08.5]} 39... Rf5 {[%clk 0:00:21.1]} 40. f4
{[%clk 0:00:06.3]} 40... Ng4+ {[%clk 0:00:20.7]} 41. Kg1 {[%clk 0:00:07.1]}
41... Rh5 {[%clk 0:00:19.8]} 42. Qg2 {[%clk 0:00:07.4]} 42... Qxg2+ {[%clk
0:00:18.5]} 43. Kxg2 {[%clk 0:00:08.1]} 43... Nf6 {[%clk 0:00:19]} 44. Kf3
{[%clk 0:00:07.2]} 44... Rh1 {[%clk 0:00:18.1]} 45. Kg2 {[%clk 0:00:07.6]} 45...
Rh5 {[%clk 0:00:18]} 46. Nd2 {[%clk 0:00:07.7]} 46... Ng4 {[%clk 0:00:14.3]} 47.
Nf1 {[%clk 0:00:06]} 47... Kf8 {[%clk 0:00:13.5]} 48. a4 {[%clk 0:00:06]} 48...
Ke7 {[%clk 0:00:13.2]} 49. Kf3 {[%clk 0:00:06.6]} 49... f5 {[%clk 0:00:12.8]}
50. b5 {[%clk 0:00:06.2]} 50... g5 {[%clk 0:00:12.4]} 51. b6 {[%clk 0:00:05.6]}
51... Kd7 {[%clk 0:00:11.5]} 52. a5 {[%clk 0:00:05.7]} 52... Rh1 {[%clk
0:00:11.3]} 53. Kg2 {[%clk 0:00:06]} 53... Rh5 {[%clk 0:00:10.9]} 54. Rb1 {[%clk
0:00:06.1]} 54... Nf6 {[%clk 0:00:08.7]} 55. a6 {[%clk 0:00:05.8]} 55... bxa6
{[%clk 0:00:08.9]} 56. b7 {[%clk 0:00:06.4]} 56... gxf4 {[%clk 0:00:09.5]} 57.
b8=Q {[%clk 0:00:06.5]} 57... f3+ {[%clk 0:00:09.9]} 58. Kxf3 {[%clk 0:00:06.3]}
58... Ne4 {[%clk 0:00:08.5]} 59. Rb7+ {[%clk 0:00:05.5]} 59... Ke6 {[%clk
0:00:09.4]} 60. Qe8+ {[%clk 0:00:05.8]} 60... Kf6 {[%clk 0:00:09.7]} 61. Qxh5
{[%clk 0:00:06.1]} 61... Ng5+ {[%clk 0:00:09.4]} 62. Kg2 {[%clk 0:00:05.9]}
62... Ke5 {[%clk 0:00:09.8]} 63. Qxh6 {[%clk 0:00:06.2]} 63... Ne4 {[%clk
0:00:08.9]} 64. Qf4+ {[%clk 0:00:06.9]} 64... Ke6 {[%clk 0:00:08.9]} 65. Qh6+
{[%clk 0:00:06.8]} 65... Ke5 {[%clk 0:00:08.9]} 66. Qg7+ {[%clk 0:00:06.9]}
66... Ke6 {[%clk 0:00:09.1]} 67. Re7# {[%clk 0:00:07.6]} 1-0

[Event "Early-Titled-Tuesday-Blitz-October-24-2023"]
[Site "Chess.com"]
[Date "2023.10.24"]
[Round "3"]
[White "MikeSailer"]
[Black "AlexandraSamaganova"]
[Result "0-1"]
[WhiteElo "2038"]
[BlackElo "2337"]
[TimeControl "180+1"]
[EndTime "8:28:56 PDT"]
[Termination "AlexandraSamaganova won on time"]

1. d4 {[%clk 0:02:58.4]} 1... Nf6 {[%clk 0:02:57.8]} 2. Bg5 {[%clk 0:02:57.7]}
2... e6 {[%clk 0:02:50.1]} 3. Nd2 {[%clk 0:02:53.3]} 3... c5 {[%clk 0:02:47.7]}
4. e3 {[%clk 0:02:44.8]} 4... Nc6 {[%clk 0:02:45.1]} 5. c3 {[%clk 0:02:43.8]}
5... d5 {[%clk 0:02:44.5]} 6. Bd3 {[%clk 0:02:43.5]} 6... h6 {[%clk 0:02:44.4]}
7. Bh4 {[%clk 0:02:42.9]} 7... Be7 {[%clk 0:02:44.6]} 8. f4 {[%clk 0:02:42.4]}
8... Rb8 {[%clk 0:02:37.2]} 9. Ngf3 {[%clk 0:02:41.9]} 9... b5 {[%clk
0:02:37.2]} 10. O-O {[%clk 0:02:32.3]} 10... b4 {[%clk 0:02:37]} 11. Ne5 {[%clk
0:02:31.5]} 11... Bd7 {[%clk 0:02:33.1]} 12. f5 {[%clk 0:01:59.8]} 12... exf5
{[%clk 0:01:47.6]} 13. Nxc6 {[%clk 0:01:31]} 13... Bxc6 {[%clk 0:01:43.8]} 14.
Rxf5 {[%clk 0:01:25.1]} 14... bxc3 {[%clk 0:01:30.3]} 15. bxc3 {[%clk 0:01:24]}
15... O-O {[%clk 0:01:19.6]} 16. Nf3 {[%clk 0:01:22.3]} 16... Ne4 {[%clk
0:01:04.9]} 17. Bxe4 {[%clk 0:01:00.7]} 17... dxe4 {[%clk 0:00:42]} 18. Ne5
{[%clk 0:01:00.6]} 18... Bb5 {[%clk 0:00:20.1]} 19. Bxe7 {[%clk 0:00:51.6]}
19... Qxe7 {[%clk 0:00:20]} 20. c4 {[%clk 0:00:46.6]} 20... Be8 {[%clk
0:00:13.3]} 21. Qg4 {[%clk 0:00:32.5]} 21... cxd4 {[%clk 0:00:06.5]} 22. exd4
{[%clk 0:00:31.9]} 22... Rb6 {[%clk 0:00:05.2]} 23. c5 {[%clk 0:00:25]} 23...
Re6 {[%clk 0:00:03.9]} 24. Raf1 {[%clk 0:00:08.7]} 24... Qd8 {[%clk 0:00:03.1]}
25. R5f2 {[%clk 0:00:04.1]} 25... f6 {[%clk 0:00:02.8]} 26. Ng6 {[%clk
0:00:03.9]} 26... Bxg6 {[%clk 0:00:02]} 27. Qxg6 {[%clk 0:00:04.5]} 27... Qxd4
{[%clk 0:00:02.3]} 28. Kh1 {[%clk 0:00:04.3]} 28... e3 {[%clk 0:00:02.8]} 29.
Re2 {[%clk 0:00:04.4]} 29... Qc4 {[%clk 0:00:02.4]} 30. Rfe1 {[%clk 0:00:04.4]}
30... Qxc5 {[%clk 0:00:02.6]} 31. h3 {[%clk 0:00:04.5]} 31... Rfe8 {[%clk
0:00:02.6]} 32. Qg3 {[%clk 0:00:03.3]} 32... Qg5 {[%clk 0:00:02.4]} 33. Qf3
{[%clk 0:00:03.4]} 33... f5 {[%clk 0:00:02.5]} 34. Qb7 {[%clk 0:00:03.1]} 34...
f4 {[%clk 0:00:02.5]} 35. Qxa7 {[%clk 0:00:03.4]} 35... Qg3 {[%clk 0:00:02.6]}
36. Qb7 {[%clk 0:00:03.5]} 36... Re4 {[%clk 0:00:02.8]} 37. Qd5+ {[%clk
0:00:03.3]} 37... Kh8 {[%clk 0:00:02.6]} 38. Qf5 {[%clk 0:00:02.8]} 38... R4e5
{[%clk 0:00:02.2]} 39. Qf7 {[%clk 0:00:02.7]} 39... R5e7 {[%clk 0:00:01.8]} 40.
Qf5 {[%clk 0:00:02.8]} 40... Qg5 {[%clk 0:00:01.6]} 41. Qxg5 {[%clk 0:00:02.8]}
41... hxg5 {[%clk 0:00:02.5]} 42. Kg1 {[%clk 0:00:02.4]} 42... Rd7 {[%clk
0:00:02.9]} 43. Kh2 {[%clk 0:00:02.7]} 43... Red8 {[%clk 0:00:03.4]} 44. g3
{[%clk 0:00:01.9]} 44... Rd2 {[%clk 0:00:03.4]} 45. Rxd2 {[%clk 0:00:01.4]}
45... Rxd2+ {[%clk 0:00:02.8]} 46. Kg1 {[%clk 0:00:01.9]} 46... Rxa2 {[%clk
0:00:02.2]} 47. gxf4 {[%clk 0:00:01.9]} 47... gxf4 {[%clk 0:00:03.1]} 48. Rf1
{[%clk 0:00:02.1]} 48... Ra4 {[%clk 0:00:02.3]} 49. Kg2 {[%clk 0:00:02.2]} 49...
g5 {[%clk 0:00:02]} 50. Kf3 {[%clk 0:00:02.4]} 50... Kh7 {[%clk 0:00:02.2]} 51.
Kg4 {[%clk 0:00:02.3]} 51... Kg6 {[%clk 0:00:02.8]} 52. h4 {[%clk 0:00:02.7]}
52... gxh4 {[%clk 0:00:02.4]} 53. Kxh4 {[%clk 0:00:03.4]} 53... Kf5 {[%clk
0:00:03]} 54. Kh3 {[%clk 0:00:03.6]} 54... Ke4 {[%clk 0:00:03.4]} 55. Kg2 {[%clk
0:00:04]} 55... Ra2+ {[%clk 0:00:03.9]} 56. Kg1 {[%clk 0:00:03.6]} 56... f3
{[%clk 0:00:04.2]} 57. Rb1 {[%clk 0:00:02.9]} 57... Ra4 {[%clk 0:00:04.3]} 58.
Kh1 {[%clk 0:00:02.2]} 58... e2 {[%clk 0:00:04]} 59. Kg1 {[%clk 0:00:02.4]}
59... Ke3 {[%clk 0:00:04.1]} 60. Rb3+ {[%clk 0:00:02.9]} 60... Kd2 {[%clk
0:00:04.1]} 61. Rb2+ {[%clk 0:00:03.7]} 61... Kc1 {[%clk 0:00:04.3]} 62. Kf2
{[%clk 0:00:02.1]} 62... Kxb2 {[%clk 0:00:04]} 0-1

[Event "Early-Titled-Tuesday-Blitz-October-24-2023"]
[Site "Chess.com"]
[Date "2023.10.24"]
[Round "3"]
[White "Harry_Rakkel"]
[Black "Sanan_Sjugirov"]
[Result "1/2-1/2"]
[WhiteElo "2706"]
[BlackElo "2946"]
[TimeControl "180+1"]
[EndTime "8:29:46 PDT"]
[Termination "Game drawn - insufficient material"]

1. e4 {[%clk 0:03:00.9]} 1... c5 {[%clk 0:02:57.7]} 2. Nf3 {[%clk 0:03:00.3]}
2... e6 {[%clk 0:02:57.7]} 3. d4 {[%clk 0:03:00]} 3... cxd4 {[%clk 0:02:57.9]}
4. Nxd4 {[%clk 0:03:00.6]} 4... a6 {[%clk 0:02:58.3]} 5. Bd3 {[%clk 0:02:58]}
5... Bc5 {[%clk 0:02:57.7]} 6. Nb3 {[%clk 0:02:57.7]} 6... Ba7 {[%clk
0:02:58.3]} 7. Qe2 {[%clk 0:02:53.6]} 7... Nc6 {[%clk 0:02:56.9]} 8. Nc3 {[%clk
0:02:50.4]} 8... d6 {[%clk 0:02:55.5]} 9. Bd2 {[%clk 0:02:47.1]} 9... Nge7
{[%clk 0:02:47.6]} 10. h4 {[%clk 0:02:45.4]} 10... b5 {[%clk 0:02:46.8]} 11. h5
{[%clk 0:02:44.9]} 11... h6 {[%clk 0:02:43.1]} 12. f4 {[%clk 0:02:41.9]} 12...
b4 {[%clk 0:02:39.6]} 13. Nd1 {[%clk 0:02:41.1]} 13... a5 {[%clk 0:02:35.4]} 14.
Be3 {[%clk 0:02:40.7]} 14... a4 {[%clk 0:02:32.8]} 15. Nd2 {[%clk 0:02:40.4]}
15... d5 {[%clk 0:02:21.3]} 16. Bxa7 {[%clk 0:02:34.6]} 16... Rxa7 {[%clk
0:02:22.2]} 17. Qf2 {[%clk 0:02:28.6]} 17... O-O {[%clk 0:02:12.6]} 18. Ne3
{[%clk 0:02:24.1]} 18... Ba6 {[%clk 0:02:00.9]} 19. O-O {[%clk 0:02:12.3]} 19...
dxe4 {[%clk 0:01:37.4]} 20. Bxa6 {[%clk 0:02:09.9]} 20... Rxa6 {[%clk
0:01:38.3]} 21. Nxe4 {[%clk 0:02:09.1]} 21... Qd4 {[%clk 0:01:38.1]} 22. Ng3
{[%clk 0:02:03.1]} 22... Qxb2 {[%clk 0:01:31]} 23. f5 {[%clk 0:02:03.1]} 23...
exf5 {[%clk 0:00:46.8]} 24. Nexf5 {[%clk 0:01:57.5]} 24... Nxf5 {[%clk 0:00:45]}
25. Nxf5 {[%clk 0:01:56.7]} 25... Qf6 {[%clk 0:00:27.5]} 26. Rad1 {[%clk
0:01:38.7]} 26... Ne7 {[%clk 0:00:15.5]} 27. Qc5 {[%clk 0:00:58.5]} 27... Nxf5
{[%clk 0:00:11.8]} 28. Rxf5 {[%clk 0:00:59.4]} 28... Qe6 {[%clk 0:00:10.1]} 29.
Re5 {[%clk 0:00:52.6]} 29... Qc8 {[%clk 0:00:04.1]} 30. Qxc8 {[%clk 0:00:34.4]}
30... Rxc8 {[%clk 0:00:03.6]} 31. Rd4 {[%clk 0:00:35.3]} 31... Rb6 {[%clk
0:00:02]} 32. Re7 {[%clk 0:00:29.9]} 32... Rbb8 {[%clk 0:00:01.9]} 33. Rdd7
{[%clk 0:00:28.5]} 33... Rf8 {[%clk 0:00:02.1]} 34. Ra7 {[%clk 0:00:27.9]} 34...
b3 {[%clk 0:00:02.5]} 35. axb3 {[%clk 0:00:27.2]} 35... axb3 {[%clk 0:00:03.4]}
36. cxb3 {[%clk 0:00:27.5]} 36... Rxb3 {[%clk 0:00:04.3]} 37. Kh2 {[%clk
0:00:27]} 37... Rb5 {[%clk 0:00:04.5]} 38. g4 {[%clk 0:00:26.9]} 38... Rb3
{[%clk 0:00:04.9]} 39. Kg2 {[%clk 0:00:24.5]} 39... Rb2+ {[%clk 0:00:02.6]} 40.
Kf3 {[%clk 0:00:24.3]} 40... Rb3+ {[%clk 0:00:03.5]} 41. Kf4 {[%clk 0:00:24.7]}
41... Rb4+ {[%clk 0:00:04.1]} 42. Kg3 {[%clk 0:00:23.4]} 42... Rb5 {[%clk
0:00:05]} 43. Red7 {[%clk 0:00:22.6]} 43... Rb6 {[%clk 0:00:05.2]} 44. Rdc7
{[%clk 0:00:20.5]} 44... Rf6 {[%clk 0:00:05.3]} 45. Rcb7 {[%clk 0:00:20.5]}
45... Re8 {[%clk 0:00:05.3]} 46. Rc7 {[%clk 0:00:19.9]} 46... Re3+ {[%clk
0:00:05.1]} 47. Kg2 {[%clk 0:00:17.6]} 47... Re2+ {[%clk 0:00:05.4]} 48. Kg3
{[%clk 0:00:17.6]} 48... Ref2 {[%clk 0:00:04.9]} 49. Rc3 {[%clk 0:00:13.6]}
49... Kh7 {[%clk 0:00:05.1]} 50. Ra8 {[%clk 0:00:12.2]} 50... g6 {[%clk
0:00:04]} 51. hxg6+ {[%clk 0:00:11.2]} 51... Kxg6 {[%clk 0:00:04.9]} 52. Rg8+
{[%clk 0:00:10.2]} 52... Kh7 {[%clk 0:00:05.3]} 53. Rb8 {[%clk 0:00:11.1]} 53...
Kg7 {[%clk 0:00:05.7]} 54. Rbb3 {[%clk 0:00:09.6]} 54... Rf1 {[%clk 0:00:05.6]}
55. Rc2 {[%clk 0:00:08.2]} 55... Re1 {[%clk 0:00:04.3]} 56. Rd2 {[%clk
0:00:07.2]} 56... Re4 {[%clk 0:00:04.2]} 57. Kh3 {[%clk 0:00:06]} 57... Rg6
{[%clk 0:00:03.9]} 58. Rg2 {[%clk 0:00:06]} 58... Re5 {[%clk 0:00:03.7]} 59. Rf3
{[%clk 0:00:05.7]} 59... Reg5 {[%clk 0:00:04.2]} 60. Rf4 {[%clk 0:00:04]} 60...
h5 {[%clk 0:00:04]} 61. Rgf2 {[%clk 0:00:01.7]} 61... hxg4+ {[%clk 0:00:03.6]}
62. Kg3 {[%clk 0:00:02]} 62... f6 {[%clk 0:00:03.7]} 63. Rf1 {[%clk 0:00:01.9]}
63... Kf7 {[%clk 0:00:03.8]} 64. R1f2 {[%clk 0:00:02.1]} 64... Kg7 {[%clk
0:00:03.8]} 65. Rf1 {[%clk 0:00:02.5]} 65... Kg8 {[%clk 0:00:03.7]} 66. R1f2
{[%clk 0:00:02.8]} 66... Kf7 {[%clk 0:00:03.9]} 67. Rf1 {[%clk 0:00:03.3]} 67...
Rh6 {[%clk 0:00:03.4]} 68. Rxg4 {[%clk 0:00:03]} 68... Rd5 {[%clk 0:00:03.8]}
69. Rgf4 {[%clk 0:00:02.9]} 69... Rd3+ {[%clk 0:00:04.2]} 70. Kg4 {[%clk
0:00:03]} 70... Rg6+ {[%clk 0:00:04.3]} 71. Kh4 {[%clk 0:00:03.3]} 71... Rd8
{[%clk 0:00:03.8]} 72. Kh3 {[%clk 0:00:03]} 72... Rd3+ {[%clk 0:00:04]} 73. R4f3
{[%clk 0:00:02.9]} 73... Rd5 {[%clk 0:00:04]} 74. Kh2 {[%clk 0:00:03.3]} 74...
Rh5+ {[%clk 0:00:04]} 75. Rh3 {[%clk 0:00:03.5]} 75... Rc5 {[%clk 0:00:04.9]}
76. Rhf3 {[%clk 0:00:03.8]} 76... Rc2+ {[%clk 0:00:05.1]} 77. R1f2 {[%clk
0:00:04]} 77... Rc8 {[%clk 0:00:06]} 78. Rh3 {[%clk 0:00:04.3]} 78... Rc1 {[%clk
0:00:06.2]} 79. Rg2 {[%clk 0:00:04.5]} 79... Rxg2+ {[%clk 0:00:05.1]} 80. Kxg2
{[%clk 0:00:05.4]} 80... Ke6 {[%clk 0:00:05.5]} 81. Ra3 {[%clk 0:00:05]} 81...
Kf5 {[%clk 0:00:05.3]} 82. Kf3 {[%clk 0:00:05.1]} 82... Rd1 {[%clk 0:00:05.2]}
83. Ra5+ {[%clk 0:00:05.2]} 83... Kg6 {[%clk 0:00:05.5]} 84. Kg4 {[%clk
0:00:05.1]} 84... Rd4+ {[%clk 0:00:05.7]} 85. Kf3 {[%clk 0:00:05.4]} 85... f5
{[%clk 0:00:06.6]} 86. Kg3 {[%clk 0:00:05.3]} 86... Kg5 {[%clk 0:00:07.2]} 87.
Kf3 {[%clk 0:00:05.6]} 87... Rd3+ {[%clk 0:00:07.8]} 88. Kf2 {[%clk 0:00:05.9]}
88... Kg4 {[%clk 0:00:07.7]} 89. Ra8 {[%clk 0:00:05.6]} 89... Rd2+ {[%clk
0:00:07.2]} 90. Kf1 {[%clk 0:00:05.4]} 90... f4 {[%clk 0:00:06.4]} 91. Ra3
{[%clk 0:00:05.2]} 91... Rd5 {[%clk 0:00:06.5]} 92. Kf2 {[%clk 0:00:05]} 92...
Rh5 {[%clk 0:00:06.9]} 93. Kf1 {[%clk 0:00:05.1]} 93... Rh1+ {[%clk 0:00:06.3]}
94. Kg2 {[%clk 0:00:05.1]} 94... Re1 {[%clk 0:00:06.4]} 95. Kf2 {[%clk
0:00:05.3]} 95... Re3 {[%clk 0:00:06.8]} 96. Rxe3 {[%clk 0:00:04.8]} 96... fxe3+
{[%clk 0:00:07.7]} 97. Kxe3 {[%clk 0:00:05.4]} 1/2-1/2

[Event "Early-Titled-Tuesday-Blitz-October-24-2023"]
[Site "Chess.com"]
[Date "2023.10.24"]
[Round "3"]
[White "Jojo_898"]
[Black "miraitrunks"]
[Result "1/2-1/2"]
[WhiteElo "2346"]
[BlackElo "2137"]
[TimeControl "180+1"]
[EndTime "8:30:13 PDT"]
[Termination "Game drawn - insufficient material"]

1. e4 {[%clk 0:03:00.9]} 1... c5 {[%clk 0:02:58.4]} 2. Nf3 {[%clk 0:02:59.8]}
2... Nc6 {[%clk 0:02:58.8]} 3. c3 {[%clk 0:02:59.2]} 3... d5 {[%clk 0:02:59]} 4.
exd5 {[%clk 0:02:58]} 4... Qxd5 {[%clk 0:02:59.9]} 5. d4 {[%clk 0:02:58.7]} 5...
Bg4 {[%clk 0:03:00.2]} 6. Be2 {[%clk 0:02:59.1]} 6... e6 {[%clk 0:02:59.8]} 7.
O-O {[%clk 0:02:56.8]} 7... Nf6 {[%clk 0:02:58.7]} 8. Be3 {[%clk 0:02:55]} 8...
cxd4 {[%clk 0:02:58.9]} 9. Nxd4 {[%clk 0:02:51.1]} 9... Bxe2 {[%clk 0:02:58.7]}
10. Qxe2 {[%clk 0:02:51.2]} 10... Nxd4 {[%clk 0:02:59]} 11. Bxd4 {[%clk
0:02:51.3]} 11... Bd6 {[%clk 0:02:59.2]} 12. Nd2 {[%clk 0:02:46.5]} 12... O-O
{[%clk 0:02:58.6]} 13. Bxf6 {[%clk 0:02:44.5]} 13... gxf6 {[%clk 0:02:57.5]} 14.
Ne4 {[%clk 0:02:43]} 14... Qe5 {[%clk 0:02:55.9]} 15. Qg4+ {[%clk 0:02:26.4]}
15... Kh8 {[%clk 0:02:54.9]} 16. Nxd6 {[%clk 0:02:25.6]} 16... Qxd6 {[%clk
0:02:54.6]} 17. Rfe1 {[%clk 0:02:22.9]} 17... Qc6 {[%clk 0:02:49.5]} 18. Qh4
{[%clk 0:02:20.3]} 18... e5 {[%clk 0:02:47.6]} 19. Re3 {[%clk 0:01:48.5]} 19...
Rg8 {[%clk 0:02:47.5]} 20. Qh3 {[%clk 0:01:48.1]} 20... Rg6 {[%clk 0:02:43.4]}
21. Rd1 {[%clk 0:01:45.2]} 21... Rag8 {[%clk 0:02:42.2]} 22. Rg3 {[%clk
0:01:44.7]} 22... Qb6 {[%clk 0:02:35.4]} 23. b3 {[%clk 0:01:35.9]} 23... Qa5
{[%clk 0:02:35.1]} 24. Rxg6 {[%clk 0:01:29.4]} 24... Rxg6 {[%clk 0:02:33.6]} 25.
Qc8+ {[%clk 0:01:26.5]} 25... Kg7 {[%clk 0:02:33.3]} 26. h4 {[%clk 0:01:18.2]}
26... Qxa2 {[%clk 0:02:31.2]} 27. Qxb7 {[%clk 0:01:02.5]} 27... Qc2 {[%clk
0:02:30.2]} 28. Rd7 {[%clk 0:01:00.1]} 28... Qc1+ {[%clk 0:02:29.1]} 29. Kh2
{[%clk 0:00:54.4]} 29... Qf4+ {[%clk 0:02:28.5]} 30. g3 {[%clk 0:00:47.3]} 30...
Qxf2+ {[%clk 0:02:27.7]} 31. Qg2 {[%clk 0:00:48]} 31... Qc5 {[%clk 0:02:25.8]}
32. c4 {[%clk 0:00:42.7]} 32... f5 {[%clk 0:02:24.9]} 33. Kh3 {[%clk 0:00:38.5]}
33... f4 {[%clk 0:02:19.9]} 34. Rd3 {[%clk 0:00:24.2]} 34... h5 {[%clk 0:01:47]}
35. Qe2 {[%clk 0:00:16.8]} 35... Qg1 {[%clk 0:01:43.3]} 36. Qg2 {[%clk 0:00:15]}
36... Qb1 {[%clk 0:01:38.5]} 37. Qe2 {[%clk 0:00:13.3]} 37... Rxg3+ {[%clk
0:01:34.2]} 38. Rxg3+ {[%clk 0:00:12.8]} 38... fxg3 {[%clk 0:01:35.1]} 39. Qxe5+
{[%clk 0:00:13.4]} 39... Kg6 {[%clk 0:01:33.1]} 40. Qxg3+ {[%clk 0:00:12.9]}
40... Kf6 {[%clk 0:01:33]} 41. Qf3+ {[%clk 0:00:13.1]} 41... Ke7 {[%clk
0:01:32.7]} 42. Qe3+ {[%clk 0:00:12.8]} 42... Kf8 {[%clk 0:01:32.5]} 43. Qc5+
{[%clk 0:00:12.9]} 43... Kg7 {[%clk 0:01:32.4]} 44. Qd4+ {[%clk 0:00:13.5]}
44... Kf8 {[%clk 0:01:32.3]} 45. Qc5+ {[%clk 0:00:13.8]} 45... Kg7 {[%clk
0:01:32.6]} 46. Qg5+ {[%clk 0:00:14.4]} 46... Kf8 {[%clk 0:01:32.6]} 47. Qh6+
{[%clk 0:00:14.9]} 47... Kg8 {[%clk 0:01:31.9]} 48. Qe3 {[%clk 0:00:15.8]} 48...
Qf5+ {[%clk 0:01:30.8]} 49. Kh2 {[%clk 0:00:14.2]} 49... Qc2+ {[%clk 0:01:30.6]}
50. Kg3 {[%clk 0:00:14.2]} 50... a5 {[%clk 0:01:25.9]} 51. Qg5+ {[%clk
0:00:13.5]} 51... Kf8 {[%clk 0:01:24.8]} 52. Qc5+ {[%clk 0:00:14]} 52... Kg8
{[%clk 0:01:24.6]} 53. Qc8+ {[%clk 0:00:14.3]} 53... Kg7 {[%clk 0:01:23.5]} 54.
Qb7 {[%clk 0:00:15]} 54... Qd3+ {[%clk 0:01:23]} 55. Kf4 {[%clk 0:00:14.9]}
55... Qd2+ {[%clk 0:01:23.1]} 56. Ke5 {[%clk 0:00:14.6]} 56... Kg6 {[%clk
0:01:22.2]} 57. Qe4+ {[%clk 0:00:14]} 57... Kg7 {[%clk 0:01:21.6]} 58. Qf4
{[%clk 0:00:13.5]} 58... Qb2+ {[%clk 0:01:19.3]} 59. Kd5 {[%clk 0:00:13.2]}
59... Qxb3 {[%clk 0:01:17.4]} 60. Qg5+ {[%clk 0:00:13.2]} 60... Kf8 {[%clk
0:01:17.5]} 61. Qxh5 {[%clk 0:00:13.7]} 61... Qb7+ {[%clk 0:01:16.5]} 62. Kd4
{[%clk 0:00:13.4]} 62... Qd7+ {[%clk 0:01:16.3]} 63. Qd5 {[%clk 0:00:14]} 63...
Qg4+ {[%clk 0:01:14.5]} 64. Qe4 {[%clk 0:00:14.6]} 64... Qd7+ {[%clk 0:01:12.6]}
65. Kc3 {[%clk 0:00:14.4]} 65... f5 {[%clk 0:01:11]} 66. Qe5 {[%clk 0:00:13.6]}
66... a4 {[%clk 0:01:08.7]} 67. Qc5+ {[%clk 0:00:13.3]} 67... Kf7 {[%clk
0:01:07.9]} 68. h5 {[%clk 0:00:11]} 68... Qd1 {[%clk 0:01:01.9]} 69. Qxf5+
{[%clk 0:00:10.1]} 69... Kg7 {[%clk 0:01:01.5]} 70. Qg6+ {[%clk 0:00:10.3]}
70... Kf8 {[%clk 0:01:01.2]} 71. h6 {[%clk 0:00:10.5]} 71... Qc1+ {[%clk
0:00:59.8]} 72. Kd4 {[%clk 0:00:10.5]} 72... Qb2+ {[%clk 0:00:59.4]} 73. Kc5
{[%clk 0:00:09.7]} 73... Qe5+ {[%clk 0:00:58.2]} 74. Kb4 {[%clk 0:00:09.6]}
74... Qb8+ {[%clk 0:00:38.5]} 75. Kxa4 {[%clk 0:00:09.6]} 75... Qa8+ {[%clk
0:00:38.8]} 76. Kb4 {[%clk 0:00:10.3]} 76... Qb7+ {[%clk 0:00:39.2]} 77. Kc3
{[%clk 0:00:11]} 77... Qf3+ {[%clk 0:00:38.4]} 78. Kd4 {[%clk 0:00:11.7]} 78...
Qf4+ {[%clk 0:00:38.2]} 79. Kd5 {[%clk 0:00:10.7]} 79... Qd2+ {[%clk 0:00:38]}
80. Kc6 {[%clk 0:00:10.3]} 80... Qf4 {[%clk 0:00:34.8]} 81. Qg7+ {[%clk
0:00:10.1]} 81... Ke8 {[%clk 0:00:34.8]} 82. h7 {[%clk 0:00:09.8]} 82... Qxc4+
{[%clk 0:00:34.9]} 83. Kd6 {[%clk 0:00:09.6]} 83... Qb4+ {[%clk 0:00:34.4]} 84.
Ke6 {[%clk 0:00:09.7]} 84... Qc4+ {[%clk 0:00:34.6]} 85. Kf5 {[%clk 0:00:10.1]}
85... Qf1+ {[%clk 0:00:33.8]} 86. Ke4 {[%clk 0:00:08]} 86... Qe2+ {[%clk
0:00:33.5]} 87. Kd5 {[%clk 0:00:08.6]} 87... Qd3+ {[%clk 0:00:32.7]} 88. Kc5
{[%clk 0:00:07.5]} 88... Qc2+ {[%clk 0:00:32.5]} 89. Kd5 {[%clk 0:00:06.3]}
89... Qd3+ {[%clk 0:00:32.7]} 90. Kc6 {[%clk 0:00:04.9]} 90... Qc2+ {[%clk
0:00:32.5]} 91. Kd6 {[%clk 0:00:04.1]} 91... Qd3+ {[%clk 0:00:32.4]} 92. Ke6
{[%clk 0:00:04.3]} 92... Qe4+ {[%clk 0:00:32.4]} 93. Qe5 {[%clk 0:00:04.5]}
93... Qxh7 {[%clk 0:00:32.5]} 94. Kd6+ {[%clk 0:00:04.5]} 94... Kf8 {[%clk
0:00:30.8]} 95. Qf6+ {[%clk 0:00:03.3]} 95... Qf7 {[%clk 0:00:30.4]} 96. Qh8+
{[%clk 0:00:02.9]} 96... Qg8 {[%clk 0:00:30.6]} 97. Qh6+ {[%clk 0:00:02.9]}
97... Kf7 {[%clk 0:00:26.8]} 98. Qf4+ {[%clk 0:00:02.8]} 98... Kg7 {[%clk
0:00:26.7]} 99. Qg5+ {[%clk 0:00:03.2]} 99... Kh7 {[%clk 0:00:26.7]} 100. Qxg8+
{[%clk 0:00:04.1]} 100... Kxg8 {[%clk 0:00:26.6]} 1/2-1/2